[Event "Late Titled Tuesday Blitz February 8 2022"]
[White "Tang, Andrew"]
[Black "Martin Duque, Jesus"]
[WhiteFideId "2059630"]
[BlackFideId "2208954"]
[WhiteElo "2584"]
[BlackElo "2243"]
[Result "1/2-1/2"]
[Round "04"]
[TimeControl "180+1"]
[Date "2022.02.08"]
[WhiteClock "0:00:07"]
[BlackClock "0:00:23"]

1. d4 {[%clk 0:03:00]}  Nf6 {[%clk 0:02:59]} 2. c4 {[%clk 0:03:00]}  b6 {[%clk 0:02:58]} 3. f3 {[%clk 0:02:59]}  Ba6 {[%clk 0:02:57]} 4. e4 {[%clk 0:02:54]}  e6 {[%clk 0:02:57]} 5. Nc3 {[%clk 0:02:50]}  Bb4 {[%clk 0:02:57]} 6. Bg5 {[%clk 0:02:36]}  h6 {[%clk 0:02:55]} 7. Bh4 {[%clk 0:02:36]}  c5 {[%clk 0:02:52]} 8. a3 {[%clk 0:02:07]}  Ba5 {[%clk 0:02:51]} 9. dxc5 {[%clk 0:01:50]}  bxc5 {[%clk 0:02:48]} 10. e5 {[%clk 0:01:50]}  g5 {[%clk 0:02:45]} 11. Bf2 {[%clk 0:01:49]}  Bxc3+ {[%clk 0:02:29]} 12. bxc3 {[%clk 0:01:48]}  Nh5 {[%clk 0:02:28]} 13. Bxc5 {[%clk 0:01:47]}  Qa5 {[%clk 0:02:26]} 14. Qd4 {[%clk 0:01:07]}  Nc6 {[%clk 0:02:17]} 15. Qe3 {[%clk 0:01:07]}  Rc8 {[%clk 0:02:08]} 16. Bd6 {[%clk 0:00:51]}  Nf4 {[%clk 0:02:01]} 17. g3 {[%clk 0:00:42]}  Ng6 {[%clk 0:01:58]} 18. c5 {[%clk 0:00:42]}  Bxf1 {[%clk 0:01:42]} 19. Kxf1 {[%clk 0:00:43]}  Qb5+ {[%clk 0:01:38]} 20. Kf2 {[%clk 0:00:41]}  Na5 {[%clk 0:01:34]} 21. Ne2 {[%clk 0:00:36]}  Nc4 {[%clk 0:01:33]} 22. Qd4 {[%clk 0:00:25]}  Nxd6 {[%clk 0:01:25]} 23. exd6 {[%clk 0:00:24]}  Qxc5 {[%clk 0:01:24]} 24. Rhb1 {[%clk 0:00:22]}  O-O {[%clk 0:01:16]} 25. Qxc5 {[%clk 0:00:14]}  Rxc5 {[%clk 0:01:17]} 26. Rb7 {[%clk 0:00:14]}  Ne5 {[%clk 0:01:09]} 27. f4 {[%clk 0:00:14]}  gxf4 {[%clk 0:01:08]} 28. gxf4 {[%clk 0:00:15]}  Ng4+ {[%clk 0:01:07]} 29. Kf3 {[%clk 0:00:15]}  Nf6 {[%clk 0:01:07]} 30. Rxa7 {[%clk 0:00:13]}  Rd5 {[%clk 0:01:03]} 31. Rg1+ {[%clk 0:00:10]}  Kh7 {[%clk 0:01:01]} 32. Ra6 {[%clk 0:00:11]}  Rd3+ {[%clk 0:01:00]} 33. Kf2 {[%clk 0:00:10]}  Rb8 {[%clk 0:00:59]} 34. Re1 {[%clk 0:00:07]}  Rb2 {[%clk 0:00:58]} 35. Ra7 {[%clk 0:00:05]}  Rxc3 {[%clk 0:00:55]} 36. Kf1 {[%clk 0:00:03]}  Rf3+ {[%clk 0:00:53]} 37. Kg1 {[%clk 0:00:03]}  Re3 {[%clk 0:00:51]} 38. Kf1 {[%clk 0:00:03]}  Rf3+ {[%clk 0:00:50]} 39. Kg1 {[%clk 0:00:04]}  Ra2 {[%clk 0:00:50]} 40. a4 {[%clk 0:00:03]}  Rfa3 {[%clk 0:00:50]} 41. Ng3 {[%clk 0:00:02]}  Rxa4 {[%clk 0:00:48]} 42. Rxa4 {[%clk 0:00:02]}  Rxa4 {[%clk 0:00:49]} 43. f5 {[%clk 0:00:03]}  Rd4 {[%clk 0:00:47]} 44. fxe6 {[%clk 0:00:03]}  fxe6 {[%clk 0:00:48]} 45. Rf1 {[%clk 0:00:03]}  Kg6 {[%clk 0:00:47]} 46. Ne2 {[%clk 0:00:04]}  Rxd6 {[%clk 0:00:46]} 47. Nf4+ {[%clk 0:00:04]}  Kg5 {[%clk 0:00:42]} 48. Nh3+ {[%clk 0:00:02]}  Kg6 {[%clk 0:00:43]} 49. Nf4+ {[%clk 0:00:02]}  Kg7 {[%clk 0:00:43]} 50. Ne2 {[%clk 0:00:02]}  Rd2 {[%clk 0:00:42]} 51. Kf2 {[%clk 0:00:02]}  d5 {[%clk 0:00:39]} 52. Ke3 {[%clk 0:00:03]}  Ra2 {[%clk 0:00:40]} 53. Nf4 {[%clk 0:00:03]}  e5 {[%clk 0:00:37]} 54. Ne6+ {[%clk 0:00:03]}  Kf7 {[%clk 0:00:37]} 55. Nc7 {[%clk 0:00:04]}  d4+ {[%clk 0:00:36]} 56. Kd3 {[%clk 0:00:04]}  Ra3+ {[%clk 0:00:33]} 57. Kd2 {[%clk 0:00:04]}  Ke7 {[%clk 0:00:32]} 58. Re1 {[%clk 0:00:05]}  Nd7 {[%clk 0:00:29]} 59. Nb5 {[%clk 0:00:04]}  Ra2+ {[%clk 0:00:29]} 60. Kd3 {[%clk 0:00:05]}  Rxh2 {[%clk 0:00:30]} 61. Nxd4 {[%clk 0:00:06]}  h5 {[%clk 0:00:27]} 62. Nf3 {[%clk 0:00:05]}  Rh3 {[%clk 0:00:27]} 63. Ke2 {[%clk 0:00:05]}  Kd6 {[%clk 0:00:26]} 64. Rd1+ {[%clk 0:00:05]}  Kc6 {[%clk 0:00:26]} 65. Rc1+ {[%clk 0:00:05]}  Kd6 {[%clk 0:00:26]} 66. Rd1+ {[%clk 0:00:05]}  Ke7 {[%clk 0:00:26]} 67. Ng5 {[%clk 0:00:05]}  Rh2+ {[%clk 0:00:25]} 68. Kf3 {[%clk 0:00:06]}  Ra2 {[%clk 0:00:26]} 69. Ne4 {[%clk 0:00:05]}  Ra3+ {[%clk 0:00:26]} 70. Kf2 {[%clk 0:00:06]}  Nf6 {[%clk 0:00:26]} 71. Nc5 {[%clk 0:00:04]}  Ng4+ {[%clk 0:00:26]} 72. Ke2 {[%clk 0:00:04]}  e4 {[%clk 0:00:24]} 73. Rd7+ {[%clk 0:00:03]}  Kf6 {[%clk 0:00:25]} 74. Rh7 {[%clk 0:00:03]}  Kg5 {[%clk 0:00:24]} 75. Nxe4+ {[%clk 0:00:03]}  Kg6 {[%clk 0:00:24]} 76. Re7 {[%clk 0:00:03]}  Re3+ {[%clk 0:00:25]} 77. Kd2 {[%clk 0:00:03]}  Kf5 {[%clk 0:00:25]} 78. Nd6+ {[%clk 0:00:04]}  Kf6 {[%clk 0:00:24]} 79. Rxe3 {[%clk 0:00:02]}  Nxe3 {[%clk 0:00:24]} 80. Kxe3 {[%clk 0:00:03]}  h4 {[%clk 0:00:23]} 81. Ne4+ {[%clk 0:00:04]}  Ke6 {[%clk 0:00:22]} 82. Nf2 {[%clk 0:00:04]}  h3 {[%clk 0:00:23]} 83. Kf3 {[%clk 0:00:05]}  h2 {[%clk 0:00:23]} 84. Kg2 {[%clk 0:00:06]}  h1=Q+ {[%clk 0:00:23]} 85. Nxh1 {[%clk 0:00:07]} 1/2-1/2


[Site "https://www.chess.com"]

[Event "Late Titled Tuesday Blitz February 8 2022"]
[White "Terletsky, Oleg"]
[Black "Borisova, Ekaterina"]
[WhiteFideId "14116774"]
[BlackFideId "34124184"]
[WhiteElo "2050"]
[BlackElo "2034"]
[Result "0-1"]
[Round "04"]
[TimeControl "180+1"]
[Date "2022.02.09"]
[WhiteClock "0:00:12"]
[BlackClock "0:00:26"]

1. e4 {[%clk 0:03:00]}  c6 {[%clk 0:02:59]} 2. d4 {[%clk 0:03:00]}  d5 {[%clk 0:02:59]} 3. Nc3 {[%clk 0:03:01]}  dxe4 {[%clk 0:03:00]} 4. Nxe4 {[%clk 0:03:01]}  Bf5 {[%clk 0:03:00]} 5. Ng3 {[%clk 0:03:00]}  Bg6 {[%clk 0:03:01]} 6. Nf3 {[%clk 0:02:56]}  Nd7 {[%clk 0:02:59]} 7. h4 {[%clk 0:02:56]}  h6 {[%clk 0:02:59]} 8. h5 {[%clk 0:02:56]}  Bh7 {[%clk 0:02:59]} 9. Bd3 {[%clk 0:02:57]}  Bxd3 {[%clk 0:03:00]} 10. Qxd3 {[%clk 0:02:57]}  e6 {[%clk 0:03:00]} 11. Bf4 {[%clk 0:02:58]}  Qa5+ {[%clk 0:03:00]} 12. Kf1 {[%clk 0:02:58]}  Ngf6 {[%clk 0:02:51]} 13. c4 {[%clk 0:02:58]}  Be7 {[%clk 0:02:42]} 14. Rh3 {[%clk 0:02:57]}  Rd8 {[%clk 0:02:40]} 15. Qc2 {[%clk 0:02:56]}  O-O {[%clk 0:02:26]} 16. Kg1 {[%clk 0:02:56]}  b5 {[%clk 0:01:49]} 17. c5 {[%clk 0:02:53]}  Nd5 {[%clk 0:01:46]} 18. Bd2 {[%clk 0:02:52]}  Qc7 {[%clk 0:01:43]} 19. Re1 {[%clk 0:02:51]}  N7f6 {[%clk 0:01:31]} 20. Ne5 {[%clk 0:02:46]}  a5 {[%clk 0:01:20]} 21. a3 {[%clk 0:02:32]}  Nh7 {[%clk 0:01:09]} 22. Ne4 {[%clk 0:02:26]}  Ndf6 {[%clk 0:01:04]} 23. Qc3 {[%clk 0:01:11]}  Nxe4 {[%clk 0:01:00]} 24. Rxe4 {[%clk 0:01:11]}  Ng5 {[%clk 0:01:00]} 25. Bxg5 {[%clk 0:01:01]}  Bxg5 {[%clk 0:01:01]} 26. Rg3 {[%clk 0:00:50]}  Rd5 {[%clk 0:01:00]} 27. Reg4 {[%clk 0:00:42]}  Rfd8 {[%clk 0:00:48]} 28. Qf3 {[%clk 0:00:37]}  Rxd4 {[%clk 0:00:27]} 29. Nxc6 {[%clk 0:00:11]}  Rd1+ {[%clk 0:00:26]} 30. Kh2 {[%clk 0:00:12]}  R8d5 {[%clk 0:00:26]} 0-1


[Site "https://www.chess.com"]

[Event "Late Titled Tuesday Blitz February 8 2022"]
[White "Tsyhanchuk, Stanislav"]
[Black "Polanco Nunez, Yoel Estarling"]
[WhiteFideId "13505130"]
[BlackFideId "6401783"]
[WhiteElo "2078"]
[BlackElo "2132"]
[Result "1-0"]
[Round "04"]
[TimeControl "180+1"]
[Date "2022.02.09"]
[WhiteClock "0:00:54"]
[BlackClock "0:00:21"]

1. d4 {[%clk 0:03:00]}  d5 {[%clk 0:02:58]} 2. c4 {[%clk 0:03:00]}  c6 {[%clk 0:02:59]} 3. Nc3 {[%clk 0:02:59]}  Nf6 {[%clk 0:02:58]} 4. e3 {[%clk 0:02:59]}  e6 {[%clk 0:02:57]} 5. Nf3 {[%clk 0:02:58]}  Nbd7 {[%clk 0:02:57]} 6. Bd3 {[%clk 0:02:58]}  dxc4 {[%clk 0:02:56]} 7. Bxc4 {[%clk 0:02:59]}  b5 {[%clk 0:02:57]} 8. Bd3 {[%clk 0:03:00]}  Bd6 {[%clk 0:02:57]} 9. e4 {[%clk 0:02:59]}  e5 {[%clk 0:02:58]} 10. O-O {[%clk 0:02:43]}  a6 {[%clk 0:02:54]} 11. Bg5 {[%clk 0:02:31]}  Bb7 {[%clk 0:02:33]} 12. Kh1 {[%clk 0:02:22]}  c5 {[%clk 0:02:14]} 13. dxe5 {[%clk 0:02:19]}  Nxe5 {[%clk 0:02:14]} 14. Nxe5 {[%clk 0:02:19]}  Bxe5 {[%clk 0:02:14]} 15. f4 {[%clk 0:02:17]}  Bd4 {[%clk 0:02:06]} 16. e5 {[%clk 0:02:14]}  h6 {[%clk 0:02:06]} 17. exf6 {[%clk 0:02:04]}  hxg5 {[%clk 0:02:05]} 18. fxg7 {[%clk 0:02:04]}  Bxg7 {[%clk 0:01:57]} 19. Qe2+ {[%clk 0:01:54]}  Kd7 {[%clk 0:01:28]} 20. fxg5 {[%clk 0:01:46]}  Bd4 {[%clk 0:00:49]} 21. Rxf7+ {[%clk 0:01:42]}  Kc8 {[%clk 0:00:46]} 22. Bf5+ {[%clk 0:01:30]}  Kb8 {[%clk 0:00:46]} 23. Be4 {[%clk 0:01:22]}  Bxe4 {[%clk 0:00:41]} 24. Qxe4 {[%clk 0:01:22]}  Ra7 {[%clk 0:00:35]} 25. Raf1 {[%clk 0:01:16]}  Rxh2+ {[%clk 0:00:30]} 26. Kxh2 {[%clk 0:01:13]}  Qh8+ {[%clk 0:00:26]} 27. Kg3 {[%clk 0:01:09]}  Be5+ {[%clk 0:00:25]} 28. Kg4 {[%clk 0:01:06]}  Qc8+ {[%clk 0:00:21]} 29. Qf5 {[%clk 0:00:54]} 1-0


[Site "https://www.chess.com"]

[Event "Late Titled Tuesday Blitz February 8 2022"]
[White "Velikanov, Alexander"]
[Black "Kopczynski, Michal"]
[WhiteFideId "2039290"]
[BlackFideId "1124200"]
[WhiteElo "2259"]
[BlackElo "2235"]
[Result "0-1"]
[Round "04"]
[TimeControl "180+1"]
[Date "2022.02.09"]
[WhiteClock "0:00:05"]
[BlackClock "0:00:09"]

1. d4 {[%clk 0:03:00]}  Nf6 {[%clk 0:02:59]} 2. Nf3 {[%clk 0:03:00]}  g6 {[%clk 0:03:00]} 3. g3 {[%clk 0:03:00]}  Bg7 {[%clk 0:03:00]} 4. Bg2 {[%clk 0:03:01]}  d6 {[%clk 0:03:01]} 5. O-O {[%clk 0:03:01]}  O-O {[%clk 0:03:01]} 6. a4 {[%clk 0:03:01]}  Nc6 {[%clk 0:03:02]} 7. Nc3 {[%clk 0:02:49]}  e5 {[%clk 0:03:01]} 8. a5 {[%clk 0:02:46]}  e4 {[%clk 0:02:56]} 9. Ng5 {[%clk 0:02:45]}  d5 {[%clk 0:02:57]} 10. f3 {[%clk 0:02:39]}  h6 {[%clk 0:02:38]} 11. fxe4 {[%clk 0:02:39]}  hxg5 {[%clk 0:02:07]} 12. exd5 {[%clk 0:02:38]}  Nxd5 {[%clk 0:02:03]} 13. Nxd5 {[%clk 0:02:30]}  Nxd4 {[%clk 0:01:58]} 14. a6 {[%clk 0:02:26]}  c6 {[%clk 0:01:49]} 15. axb7 {[%clk 0:01:59]}  Bxb7 {[%clk 0:01:50]} 16. c3 {[%clk 0:01:48]}  Nxe2+ {[%clk 0:01:24]} 17. Qxe2 {[%clk 0:01:48]}  cxd5 {[%clk 0:01:24]} 18. Be3 {[%clk 0:01:39]}  Re8 {[%clk 0:01:23]} 19. Qd2 {[%clk 0:01:38]}  d4 {[%clk 0:01:02]} 20. Bxg5 {[%clk 0:00:53]}  Qb6 {[%clk 0:00:50]} 21. Kh1 {[%clk 0:00:53]}  dxc3 {[%clk 0:00:43]} 22. bxc3 {[%clk 0:00:54]}  Bxg2+ {[%clk 0:00:41]} 23. Qxg2 {[%clk 0:00:55]}  Bxc3 {[%clk 0:00:34]} 24. Rab1 {[%clk 0:00:56]}  Qe6 {[%clk 0:00:29]} 25. Rb7 {[%clk 0:00:56]}  f6 {[%clk 0:00:20]} 26. Bh6 {[%clk 0:00:26]}  Qe4 {[%clk 0:00:19]} 27. Rf3 {[%clk 0:00:18]}  Rab8 {[%clk 0:00:14]} 28. Qa2+ {[%clk 0:00:15]}  Kh8 {[%clk 0:00:09]} 29. Rxb8 {[%clk 0:00:04]}  Rxb8 {[%clk 0:00:10]} 30. Kg2 {[%clk 0:00:02]}  Rb2+ {[%clk 0:00:09]} 31. Qxb2 {[%clk 0:00:02]}  Bxb2 {[%clk 0:00:10]} 32. Be3 {[%clk 0:00:03]}  Bc3 {[%clk 0:00:10]} 33. h3 {[%clk 0:00:03]}  a5 {[%clk 0:00:10]} 34. Bc5 {[%clk 0:00:03]}  a4 {[%clk 0:00:10]} 35. g4 {[%clk 0:00:03]}  a3 {[%clk 0:00:09]} 36. Bxa3 {[%clk 0:00:03]}  Be5 {[%clk 0:00:10]} 37. Bc5 {[%clk 0:00:02]}  Qe2+ {[%clk 0:00:10]} 38. Bf2 {[%clk 0:00:03]}  Kg7 {[%clk 0:00:09]} 39. h4 {[%clk 0:00:03]}  Kf7 {[%clk 0:00:10]} 40. h5 {[%clk 0:00:03]}  gxh5 {[%clk 0:00:10]} 41. gxh5 {[%clk 0:00:04]}  Kg7 {[%clk 0:00:11]} 42. Rh3 {[%clk 0:00:03]}  Kh6 {[%clk 0:00:11]} 43. Rf3 {[%clk 0:00:04]}  Qe4 {[%clk 0:00:11]} 44. Bg3 {[%clk 0:00:04]}  Kxh5 {[%clk 0:00:10]} 45. Bf2 {[%clk 0:00:03]}  Kg4 {[%clk 0:00:10]} 46. Kg1 {[%clk 0:00:01]}  Qxf3 {[%clk 0:00:10]} 47. Bg3 {[%clk 0:00:02]}  Qxg3+ {[%clk 0:00:10]} 48. Kf1 {[%clk 0:00:03]}  Qh2 {[%clk 0:00:09]} 49. Ke1 {[%clk 0:00:04]}  Kf3 {[%clk 0:00:09]} 50. Kd1 {[%clk 0:00:05]}  Qb2 {[%clk 0:00:08]} 51. Ke1 {[%clk 0:00:05]}  Qe2# {[%clk 0:00:09]} 0-1


[Site "https://www.chess.com"]

[Event "Late Titled Tuesday Blitz February 8 2022"]
[White "Villegas, Pierre"]
[Black "Kraus, Tomas"]
[WhiteFideId "654183"]
[BlackFideId "331708"]
[WhiteElo "2410"]
[BlackElo "2389"]
[Result "0-1"]
[Round "04"]
[TimeControl "180+1"]
[Date "2022.02.09"]
[WhiteClock "0:00:35"]
[BlackClock "0:00:32"]

1. c4 {[%clk 0:03:00]}  e5 {[%clk 0:02:56]} 2. Nc3 {[%clk 0:02:58]}  Nf6 {[%clk 0:02:54]} 3. Nf3 {[%clk 0:02:57]}  Nc6 {[%clk 0:02:53]} 4. e4 {[%clk 0:02:55]}  Bb4 {[%clk 0:02:53]} 5. d3 {[%clk 0:02:54]}  d6 {[%clk 0:02:49]} 6. g3 {[%clk 0:02:50]}  O-O {[%clk 0:02:40]} 7. Bg2 {[%clk 0:02:50]}  a6 {[%clk 0:02:40]} 8. O-O {[%clk 0:02:48]}  Bg4 {[%clk 0:02:39]} 9. Nd5 {[%clk 0:02:42]}  Nxd5 {[%clk 0:02:36]} 10. cxd5 {[%clk 0:02:39]}  Nd4 {[%clk 0:02:37]} 11. Be3 {[%clk 0:02:39]}  Bc5 {[%clk 0:02:29]} 12. Bxd4 {[%clk 0:02:21]}  Bxd4 {[%clk 0:02:30]} 13. Qc2 {[%clk 0:02:20]}  Bxf3 {[%clk 0:02:29]} 14. Bxf3 {[%clk 0:02:19]}  f5 {[%clk 0:02:26]} 15. Rac1 {[%clk 0:02:15]}  Bb6 {[%clk 0:02:25]} 16. exf5 {[%clk 0:02:09]}  Rxf5 {[%clk 0:02:21]} 17. Bg4 {[%clk 0:02:04]}  Rf6 {[%clk 0:02:13]} 18. Kg2 {[%clk 0:02:00]}  Qe7 {[%clk 0:02:02]} 19. Rce1 {[%clk 0:01:53]}  Raf8 {[%clk 0:01:55]} 20. f4 {[%clk 0:01:46]}  Kh8 {[%clk 0:01:50]} 21. Qe2 {[%clk 0:01:38]}  Qe8 {[%clk 0:01:30]} 22. fxe5 {[%clk 0:01:28]}  Rf2+ {[%clk 0:01:20]} 23. Rxf2 {[%clk 0:01:27]}  Rxf2+ {[%clk 0:01:21]} 24. Qxf2 {[%clk 0:01:27]}  Bxf2 {[%clk 0:01:21]} 25. Kxf2 {[%clk 0:01:27]}  dxe5 {[%clk 0:01:19]} 26. Bf3 {[%clk 0:01:27]}  Qb5 {[%clk 0:01:07]} 27. Rxe5 {[%clk 0:01:25]}  Qxb2+ {[%clk 0:01:05]} 28. Re2 {[%clk 0:01:24]}  Qd4+ {[%clk 0:01:05]} 29. Kg2 {[%clk 0:01:23]}  Kg8 {[%clk 0:00:58]} 30. Re7 {[%clk 0:01:17]}  Qb2+ {[%clk 0:00:49]} 31. Kh3 {[%clk 0:01:17]}  Qf6 {[%clk 0:00:49]} 32. Re8+ {[%clk 0:00:59]}  Kf7 {[%clk 0:00:46]} 33. Bh5+ {[%clk 0:00:59]}  g6 {[%clk 0:00:46]} 34. Re6 {[%clk 0:01:00]}  gxh5 {[%clk 0:00:37]} 35. Rxf6+ {[%clk 0:00:48]}  Kxf6 {[%clk 0:00:38]} 36. g4 {[%clk 0:00:42]}  b5 {[%clk 0:00:34]} 37. Kh4 {[%clk 0:00:40]}  hxg4 {[%clk 0:00:33]} 38. Kxg4 {[%clk 0:00:40]}  Ke5 {[%clk 0:00:32]} 39. h4 {[%clk 0:00:37]}  b4 {[%clk 0:00:32]} 40. Kg5 {[%clk 0:00:35]}  a5 {[%clk 0:00:31]} 41. Kh6 {[%clk 0:00:35]}  a4 {[%clk 0:00:31]} 42. Kxh7 {[%clk 0:00:35]}  b3 {[%clk 0:00:32]} 0-1


[Site "https://www.chess.com"]

[Event "Late Titled Tuesday Blitz February 8 2022"]
[White "Wieczorek, Oskar"]
[Black "Khater, Sherif"]
[WhiteFideId "1133950"]
[BlackFideId "2034280"]
[WhiteElo "2319"]
[BlackElo "2527"]
[Result "0-1"]
[Round "04"]
[TimeControl "180+1"]
[Date "2022.02.09"]
[WhiteClock "0:00:05"]
[BlackClock "0:01:28"]

1. e4 {[%clk 0:03:00]}  e5 {[%clk 0:02:59]} 2. Nf3 {[%clk 0:03:01]}  Nf6 {[%clk 0:02:59]} 3. Nc3 {[%clk 0:03:01]}  Nc6 {[%clk 0:02:58]} 4. a3 {[%clk 0:03:01]}  a6 {[%clk 0:02:56]} 5. d4 {[%clk 0:03:01]}  exd4 {[%clk 0:02:56]} 6. Nxd4 {[%clk 0:03:01]}  Bc5 {[%clk 0:02:56]} 7. Be3 {[%clk 0:03:02]}  Bb6 {[%clk 0:02:51]} 8. Nxc6 {[%clk 0:03:02]}  dxc6 {[%clk 0:02:49]} 9. Qxd8+ {[%clk 0:03:03]}  Kxd8 {[%clk 0:02:49]} 10. O-O-O+ {[%clk 0:03:03]}  Ke8 {[%clk 0:02:49]} 11. Bxb6 {[%clk 0:03:02]}  cxb6 {[%clk 0:02:49]} 12. f3 {[%clk 0:03:01]}  b5 {[%clk 0:02:48]} 13. e5 {[%clk 0:02:54]}  Nd7 {[%clk 0:02:46]} 14. f4 {[%clk 0:02:54]}  Nc5 {[%clk 0:02:42]} 15. b4 {[%clk 0:02:50]}  Ne6 {[%clk 0:02:43]} 16. g3 {[%clk 0:02:47]}  a5 {[%clk 0:02:43]} 17. Ne4 {[%clk 0:02:44]}  axb4 {[%clk 0:02:42]} 18. axb4 {[%clk 0:02:45]}  Ra1+ {[%clk 0:02:41]} 19. Kd2 {[%clk 0:02:45]}  Rxd1+ {[%clk 0:02:41]} 20. Kxd1 {[%clk 0:02:46]}  Ke7 {[%clk 0:02:41]} 21. Nd6 {[%clk 0:02:27]}  Rd8 {[%clk 0:02:35]} 22. Kc1 {[%clk 0:02:20]}  Nc7 {[%clk 0:02:27]} 23. Bg2 {[%clk 0:02:12]}  f6 {[%clk 0:02:23]} 24. Re1 {[%clk 0:02:01]}  fxe5 {[%clk 0:02:22]} 25. Nxc8+ {[%clk 0:02:01]}  Rxc8 {[%clk 0:02:23]} 26. Rxe5+ {[%clk 0:02:02]}  Kd6 {[%clk 0:02:22]} 27. Be4 {[%clk 0:01:33]}  h6 {[%clk 0:02:16]} 28. Bg6 {[%clk 0:01:26]}  Nd5 {[%clk 0:02:14]} 29. Bf5 {[%clk 0:01:27]}  Rf8 {[%clk 0:02:03]} 30. Re6+ {[%clk 0:01:21]}  Kc7 {[%clk 0:02:03]} 31. Bh3 {[%clk 0:01:22]}  Rf6 {[%clk 0:02:00]} 32. Re8 {[%clk 0:01:18]}  Kd6 {[%clk 0:01:58]} 33. Rd8+ {[%clk 0:00:57]}  Kc7 {[%clk 0:01:58]} 34. Rd7+ {[%clk 0:00:57]}  Kb6 {[%clk 0:01:59]} 35. Rxg7 {[%clk 0:00:58]}  Nxb4 {[%clk 0:02:00]} 36. Bc8 {[%clk 0:00:51]}  Kc5 {[%clk 0:01:56]} 37. Bxb7 {[%clk 0:00:43]}  Kc4 {[%clk 0:01:50]} 38. Kb2 {[%clk 0:00:27]}  Re6 {[%clk 0:01:47]} 39. f5 {[%clk 0:00:21]}  Re2 {[%clk 0:01:48]} 40. Rg4+ {[%clk 0:00:21]}  Kc5 {[%clk 0:01:45]} 41. f6 {[%clk 0:00:08]}  Rf2 {[%clk 0:01:28]} 42. Rf4 {[%clk 0:00:05]}  Nd3+ {[%clk 0:01:28]} 43. Kc3 {[%clk 0:00:05]}  Nxf4 {[%clk 0:01:28]} 0-1


[Site "https://www.chess.com"]

[Event "Late Titled Tuesday Blitz February 8 2022"]
[White "Wu, Christopher"]
[Black "Estrada Nieto, Julian"]
[WhiteFideId "2040875"]
[BlackFideId "5101018"]
[WhiteElo "2656"]
[BlackElo "2246"]
[Result "1/2-1/2"]
[Round "04"]
[TimeControl "180+1"]
[Date "2022.02.09"]
[WhiteClock "0:00:22"]
[BlackClock "0:00:27"]

1. d4 {[%clk 0:03:00]}  d5 {[%clk 0:02:59]} 2. c4 {[%clk 0:03:00]}  dxc4 {[%clk 0:03:00]} 3. Nf3 {[%clk 0:02:58]}  Nf6 {[%clk 0:03:00]} 4. e3 {[%clk 0:02:57]}  Bg4 {[%clk 0:02:59]} 5. Bxc4 {[%clk 0:02:56]}  e6 {[%clk 0:02:59]} 6. O-O {[%clk 0:02:56]}  a6 {[%clk 0:02:58]} 7. a4 {[%clk 0:02:53]}  Nc6 {[%clk 0:02:59]} 8. Nc3 {[%clk 0:02:53]}  Bd6 {[%clk 0:02:59]} 9. h3 {[%clk 0:02:52]}  Bh5 {[%clk 0:02:58]} 10. b3 {[%clk 0:02:43]}  O-O {[%clk 0:02:47]} 11. Bb2 {[%clk 0:02:43]}  e5 {[%clk 0:02:47]} 12. Be2 {[%clk 0:02:34]}  exd4 {[%clk 0:02:43]} 13. Nxd4 {[%clk 0:02:33]}  Bxe2 {[%clk 0:02:42]} 14. Ncxe2 {[%clk 0:02:29]}  Nxd4 {[%clk 0:02:42]} 15. Nxd4 {[%clk 0:02:21]}  Re8 {[%clk 0:02:34]} 16. Rc1 {[%clk 0:02:13]}  Be5 {[%clk 0:02:33]} 17. Qc2 {[%clk 0:02:11]}  c6 {[%clk 0:02:33]} 18. Rfd1 {[%clk 0:02:07]}  Qc8 {[%clk 0:02:30]} 19. Nf3 {[%clk 0:01:49]}  Bxb2 {[%clk 0:02:29]} 20. Qxb2 {[%clk 0:01:50]}  h6 {[%clk 0:02:26]} 21. Rd4 {[%clk 0:01:48]}  Qe6 {[%clk 0:02:24]} 22. Rcd1 {[%clk 0:01:44]}  Ne4 {[%clk 0:02:19]} 23. b4 {[%clk 0:01:32]}  a5 {[%clk 0:02:18]} 24. b5 {[%clk 0:01:31]}  cxb5 {[%clk 0:02:12]} 25. axb5 {[%clk 0:01:28]}  a4 {[%clk 0:02:11]} 26. Ra1 {[%clk 0:01:24]}  Nc5 {[%clk 0:02:01]} 27. Rg4 {[%clk 0:01:13]}  g6 {[%clk 0:01:56]} 28. Nd4 {[%clk 0:01:00]}  Qe5 {[%clk 0:01:52]} 29. Qa3 {[%clk 0:00:46]}  Nb3 {[%clk 0:01:49]} 30. Rd1 {[%clk 0:00:23]}  Nxd4 {[%clk 0:01:45]} 31. Rdxd4 {[%clk 0:00:24]}  Qxb5 {[%clk 0:01:43]} 32. Rxa4 {[%clk 0:00:24]}  Rxa4 {[%clk 0:01:43]} 33. Rxa4 {[%clk 0:00:25]}  h5 {[%clk 0:01:19]} 34. Rd4 {[%clk 0:00:22]}  Rc8 {[%clk 0:01:14]} 35. Qd6 {[%clk 0:00:22]}  Qb1+ {[%clk 0:01:08]} 36. Kh2 {[%clk 0:00:22]}  Qf5 {[%clk 0:01:09]} 37. Qe7 {[%clk 0:00:20]}  b5 {[%clk 0:00:52]} 38. Rf4 {[%clk 0:00:20]}  Qd5 {[%clk 0:00:48]} 39. e4 {[%clk 0:00:20]}  Qc4 {[%clk 0:00:44]} 40. Rf6 {[%clk 0:00:20]}  b4 {[%clk 0:00:41]} 41. Rb6 {[%clk 0:00:21]}  b3 {[%clk 0:00:38]} 42. Qb7 {[%clk 0:00:21]}  Re8 {[%clk 0:00:28]} 43. Rxb3 {[%clk 0:00:21]}  Qxe4 {[%clk 0:00:27]} 44. Qxe4 {[%clk 0:00:21]}  Rxe4 {[%clk 0:00:27]} 45. Rb8+ {[%clk 0:00:21]}  Kg7 {[%clk 0:00:27]} 46. Rb3 {[%clk 0:00:22]} 1/2-1/2


[Site "https://www.chess.com"]

[Event "Late Titled Tuesday Blitz February 8 2022"]
[White "Zivkovic, Nemanja"]
[Black "Ozen, Deniz"]
[WhiteFideId "942154"]
[BlackFideId "6349196"]
[WhiteElo "2388"]
[BlackElo "2326"]
[Result "0-1"]
[Round "04"]
[TimeControl "180+1"]
[Date "2022.02.08"]
[WhiteClock "0:00:07"]
[BlackClock "0:00:33"]

1. d4 {[%clk 0:02:53]}  Nf6 {[%clk 0:02:59]} 2. Nf3 {[%clk 0:02:52]}  d5 {[%clk 0:03:00]} 3. Bf4 {[%clk 0:02:49]}  Nh5 {[%clk 0:03:00]} 4. Bg5 {[%clk 0:02:48]}  h6 {[%clk 0:03:00]} 5. Bh4 {[%clk 0:02:44]}  g5 {[%clk 0:03:00]} 6. Bg3 {[%clk 0:02:33]}  Nc6 {[%clk 0:03:01]} 7. e3 {[%clk 0:02:32]}  Bg7 {[%clk 0:03:00]} 8. c4 {[%clk 0:02:27]}  Bg4 {[%clk 0:02:52]} 9. Nbd2 {[%clk 0:02:19]}  e5 {[%clk 0:02:49]} 10. dxe5 {[%clk 0:02:10]}  Nxg3 {[%clk 0:02:48]} 11. hxg3 {[%clk 0:02:10]}  Nxe5 {[%clk 0:02:49]} 12. cxd5 {[%clk 0:02:05]}  Qxd5 {[%clk 0:02:46]} 13. Qa4+ {[%clk 0:01:59]}  Bd7 {[%clk 0:02:43]} 14. Qc2 {[%clk 0:01:55]}  Nxf3+ {[%clk 0:02:38]} 15. Nxf3 {[%clk 0:01:38]}  Qa5+ {[%clk 0:02:38]} 16. Nd2 {[%clk 0:01:38]}  O-O-O {[%clk 0:02:38]} 17. Bd3 {[%clk 0:01:31]}  Ba4 {[%clk 0:02:39]} 18. Qc4 {[%clk 0:01:23]}  Bxb2 {[%clk 0:02:24]} 19. Ke2 {[%clk 0:01:12]}  Bxa1 {[%clk 0:02:22]} 20. Rxa1 {[%clk 0:01:13]}  Qd5 {[%clk 0:01:41]} 21. Qc3 {[%clk 0:00:59]}  Bc6 {[%clk 0:01:41]} 22. Nb3 {[%clk 0:00:55]}  Qxg2 {[%clk 0:01:36]} 23. Nd4 {[%clk 0:00:55]}  h5 {[%clk 0:01:21]} 24. Rc1 {[%clk 0:00:52]}  Qd5 {[%clk 0:00:58]} 25. Bc4 {[%clk 0:00:26]}  Qd7 {[%clk 0:00:58]} 26. Qb3 {[%clk 0:00:16]}  Rhe8 {[%clk 0:00:44]} 27. Nxc6 {[%clk 0:00:07]}  Qxc6 {[%clk 0:00:37]} 28. Rc2 {[%clk 0:00:07]}  g4 {[%clk 0:00:33]} 29. Bb5 {[%clk 0:00:07]}  Qf3+ {[%clk 0:00:33]} 0-1


[Site "https://www.chess.com"]